Workbook

Sheet MSU
B1: Jyrki Peltola | E1: 24.10.1965
B2: SUPERPESIS | E2: Runkosarja | I2: Kärkilyönnit (KL), pesänvälit | P2: Runkosarja TOP-30 | U2: Ylempi loppusarja | AB2: Alempi loppusarja | AI2: Arvo-ottelut | AM2: Mitalit
B3: Vuosi | C3: Sija | D3: Seura | E3: OTT | F3: KUN | G3: LÖI | H3: TOI | I3: KL | J3: 0 > 1 | K3: 1 > 2 | L3: 2 > 3 | M3: 3 > k | N3: KL-% | P3: LÖI | Q3: TOI | R3: L+T | S3: KL | U3: OTT | V3: KUN | W3: LÖI | X3: TOI | Y3: KL | Z3: KL-% | AB3: OTT | AC3: KUN | AD3: LÖI | AE3: TOI | AF3: KL | AG3: KL-% | AI3: IL | AJ3: LL | AK3: hSM | AL3: K | AM3: H | AN3: P
B4: 1984 | C4: 11. | D4: HP | E4: 0 | F4: 0 | G4: 0 | H4: 0 | I4: 0 | J4: 0 | K4: 0 | L4: 0 | M4: 0 | N4: ---- | AB4: 3 | AC4: 0 | AD4: 0 | AE4: 0 | AF4: 8 | AG4: 61.5 %
B5: 1985 | C5: 3. | D5: HP | F5: ykkössarja
B6: 1986 | C6: 10. | D6: HP | E6: 22 | F6: 0 | G6: 12 | H6: 2 | I6: 48 | J6: 6 | K6: 15 | L6: 15 | M6: 12 | N6: 39.3 % | AB6: 8 | AC6: 0 | AD6: 5 | AE6: 5 | AF6: 39 | AG6: 58.2 %
B7: 1987 | C7: 5. | D7: HP | F7: ykkössarja
B8: 1988 | C8: 3. | D8: HP | F8: ykkössarja
B9: 1989 | C9: 3. | D9: HP | F9: ykkössarja
B10: 1990 | C10: 1. | D10: Puhti | F10: suomensarja
B11: 1991 | C11: 6. | D11: Puhti | F11: ykkössarja
B12: 1992 | C12: 12. | D12: Puhti | F12: ykköspesis
B13: 1993 | C13: 2. | D13: Puhti | F13: suomensarja
B14: 1994 | C14: 3. | D14: Puhti | F14: suomensarja
B15: 1995 | C15: 2. | D15: KPL | F15: suomensarja
B16: 1996 | C16: 1. | D16: KPL | F16: suomensarja
B17: 1997 | C17: 2. | D17: KPL | F17: ykköspesis | AB17: 4 | AC17: 0 | AD17: 9 | AE17: 0 | AF17: 21 | AG17: 55.3 %
B18: 1998 | C18: 1. | D18: KPL | F18: ykköspesis
B19: 1999 | C19: 13. | D19: KPL | E19: 28 | F19: 0 | G19: 35 | H19: 1 | I19: 87 | J19: 2 | K19: 7 | L19: 43 | M19: 35 | N19: 42.3 % | P19: 13. | AB19: 4 | AC19: 0 | AD19: 5 | AE19: 0 | AF19: 19 | AG19: 54.3 %
B20: 2000 | C20: 14. | D20: HP | E20: 27 | F20: 0 | G20: 19 | H20: 1 | I20: 58 | J20: 1 | K20: 6 | L20: 32 | M20: 19 | N20: 33.5 % | AB20: 6 | AC20: 0 | AD20: 5 | AE20: 1 | AF20: 16 | AG20: 45.7 %
B21: 2001
B22: 2002 | C22: 5. | D22: Puhti | F22: suomensarja
B23: 2003 | C23: 13. | D23: SuPo | F23: ykköspesis
B24: 2004 | C24: 9. | D24: HaPe 2 | F24: suomensarja
B25: Yhteensä | E25: 77 | F25: 0 | G25: 66 | H25: 4 | I25: 193 | J25: 9 | K25: 28 | L25: 90 | M25: 66 | N25: 38.5 % | P25: 0-0-0 | Q25: 0-0-0 | R25: 0-0-0 | S25: 0-0-0 | U25: =SUM(U9:U24) -> 0 | V25: =SUM(V9:V24) -> 0 | W25: =SUM(W9:W24) -> 0 | X25: =SUM(X9:X24) -> 0 | Y25: =SUM(Y9:Y24) -> 0 | Z25: 0.0 % | AB25: =PRODUCT(E31) -> 25 | AC25: =PRODUCT(F31) -> 0 | AD25: =PRODUCT(G31) -> 24 | AE25: =PRODUCT(H31) -> 6 | AF25: =PRODUCT(I31) -> 103 | AG25: =PRODUCT(N31) -> 54.8 % | AI25: 0 | AJ25: 0 | AK25: 0 | AL25: 0 | AM25: 0 | AN25: 0
B26: Pesispörssi | D26: 138.0
B28: URA SUPERISSA | E28: OTT | F28: KUN | G28: LÖI | H28: TOI | I28: KL | K28: ka/L | L28: ka/T | M28: ka/KL | N28: KL-% | P28: ENSIMMÄISET RUNKOSARJASSA
B29: Runkosarja | E29: 77 | F29: 0 | G29: 66 | H29: 4 | I29: 193 | K29: 0.86 | L29: 0.05 | M29: 2.51 | N29: 38.5 % | P29: Ottelu | R29: 11.05. 1986 HP - VM 4-5 | X29: 1. ottelu | Z29: 20 v 6 kk 17 pv
B30: Ylempi loppusarja | P30: Lyöty | R30: 11.05. 1986 HP - VM 4-5 | X30: 1. ottelu | Z30: 20 v 6 kk 17 pv
B31: Alempi loppusarja | E31: 25 | F31: 0 | G31: 24 | H31: 6 | I31: 103 | K31: 0.96 | L31: 0.24 | M31: 4.12 | N31: 54.8 % | P31: Tuotu | R31: 02.07. 1986 HP - RPL 7-11 | X31: 12. ottelu | Z31: 20 v 8 kk 9 pv
B32: KAIKKI | E32: 102 | F32: 0 | G32: 90 | H32: 10 | I32: 296 | K32: 0.88 | L32: 0.10 | M32: 2.90 | N32: 42.9 % | P32: Kunnari
B34: Seurat | D34: HP = Haminan Palloilijat (1928) | K34: Puhti = Kuusankosken Puhti (1910) | R34: KPL = Kouvolan Pallonlyöjät (1931) | Z34: SuPo = Summan Ponnistus (1906) | AG34: HaPe = Hamina Pesis (2003)

Sheet MYP, MSS
B1: Jyrki Peltola | E1: 24.10.1965
B2: YKKÖSPESIS | E2: Runkosarja | L2: Runkosarja TOP-10 | Q2: Jatkosarjat | X2: SUOMENSARJA | AA2: Runkosarja | AH2: Runkosarja TOP-10 | AM2: Jatkosarjat
B3: Vuosi | C3: Sija | D3: Seura | E3: OTT | F3: KUN | G3: LÖI | H3: TOI | I3: KL | J3: KL-% | L3: LÖI | M3: TOI | N3: L+T | O3: KL | Q3: OTT | R3: KUN | S3: LÖI | T3: TOI | U3: KL | V3: KL-% | X3: Vuosi | Y3: Sija | Z3: Seura | AA3: OTT | AB3: KUN | AC3: LÖI | AD3: TOI | AE3: KL | AF3: KL-% | AH3: LÖI | AI3: TOI | AJ3: L+T | AK3: KL | AM3: OTT | AN3: KUN | AO3: LÖI | AP3: TOI | AQ3: KL | AR3: KL-%
B4: 1985 | C4: 3. | D4: HP | E4: 19 | F4: 2 | G4: 27 | H4: 3 | L4: 6.
B6: 1987 | C6: 5. | D6: HP | E6: 22 | F6: 2 | G6: 26 | H6: 12 | L6: 8.
B7: 1988 | C7: 3. | D7: HP | E7: 22 | F7: 2 | G7: 22 | H7: 18
B8: 1989 | C8: 3. | D8: HP | E8: 22 | F8: 2 | G8: 28 | H8: 22 | L8: 8. | N8: 10.
X9: 1990 | Y9: 1. | Z9: Puhti | AA9: 16 | AB9: 1 | AC9: 38 | AD9: 15 | AH9: 3. | AJ9: 8.
B10: 1991 | C10: 6. | D10: Puhti | E10: 22 | F10: 5 | G10: 41 | H10: 23 | I10: 144 | L10: 4. | N10: 3. | O10: 4.
B11: 1992 | C11: 12. | D11: Puhti | E11: 25 | F11: 3 | G11: 39 | H11: 8 | I11: 163 | L11: 10. | O11: 3.
B13: 1997 | C13: 2. | D13: KPL | E13: 26 | F13: 4 | G13: 56 | H13: 16 | I13: 143 | L13: 2. | N13: 2. | O13: 4.
B14: 1998 | C14: 1. | D14: KPL | E14: 24 | F14: 0 | G14: 54 | H14: 3 | I14: 114 | L14: 2. | N14: 4.
X15: 2002 | Y15: 5. | Z15: Puhti | AA15: 7 | AB15: 1 | AC15: 18 | AD15: 7 | AE15: 39 | AF15: 63.9 % | AG15: 61
B16: 2003 | C16: 13. | D16: SuPo | E16: 21 | F16: 1 | G16: 43 | H16: 4 | I16: 64 | J16: 42.7 % | K16: 150 | L16: 10. | Q16: 2 | R16: 0 | S16: 4 | T16: 0 | U16: 10 | V16: 47.6 % | W16: 21
X17: 2004 | Y17: 9. | Z17: HaPe 2 | AA17: 5 | AB17: 2 | AC17: 6 | AD17: 6 | AE17: 28 | AF17: 60.9 % | AG17: 46
B18: YHTEENSÄ | E18: =SUM(E4:E17) -> 203 | F18: =SUM(F4:F17) -> 21 | G18: =SUM(G4:G17) -> 336 | H18: =SUM(H4:H17) -> 109 | I18: =SUM(I4:I17) -> 628 | J18: 0.0 % | K18: =SUM(K4:K17) -> 150 | Q18: =SUM(Q4:Q17) -> 2 | R18: =SUM(R4:R17) -> 0 | S18: =SUM(S4:S17) -> 4 | T18: =SUM(T4:T17) -> 0 | U18: =SUM(U4:U17) -> 10 | V18: 47.6 % | W18: =SUM(W4:W17) -> 21 | X18: YHTEENSÄ | AA18: =SUM(AA4:AA17) -> 28 | AB18: =SUM(AB4:AB17) -> 4 | AC18: =SUM(AC4:AC17) -> 62 | AD18: =SUM(AD4:AD17) -> 28 | AE18: =SUM(AE4:AE17) -> 67 | AF18: =PRODUCT(AE18/AG18) -> 62.6 % | AG18: =SUM(AG4:AG17) -> 107 | AM18: =SUM(AM4:AM17) -> 0 | AN18: =SUM(AN4:AN17) -> 0 | AO18: =SUM(AO4:AO17) -> 0 | AP18: =SUM(AP4:AP17) -> 0 | AQ18: =SUM(AQ4:AQ17) -> 0 | AR18: 0.0 % | AS18: =SUM(AS4:AS17) -> 0
B20: KAIKKI OTTELUT | E20: OTT | F20: KUN | G20: LÖI | H20: TOI | I20: KL | J20: KL-% | L20: ka/L | M20: ka/T | N20: ka/l+t | O20: ka/kl | R20: Seurat | T20: HP = Haminan Palloilijat (1928)
B21: SUPERPESIS | E21: 102 | F21: 0 | G21: 90 | H21: 10 | I21: 296 | J21: 42.9 % | K21: =PRODUCT(I21/J21) -> 689.97669 | L21: =PRODUCT((F21+G21)/E21) -> 0.88 | M21: =PRODUCT(H21/E21) -> 0.10 | N21: =PRODUCT((F21+G21+H21)/E21) -> 0.98 | O21: =PRODUCT(I21/E21) -> 2.90 | T21: Puhti = Kuusankosken Puhti (1910)
B22: YKKÖSPESIS | E22: =PRODUCT(E18+Q18) -> 205 | F22: =PRODUCT(F18+R18) -> 21 | G22: =PRODUCT(G18+S18) -> 340 | H22: =PRODUCT(H18+T18) -> 109 | I22: =PRODUCT(I18+U18) -> 638 | K22: =PRODUCT(K18+W18) -> 171 | L22: =PRODUCT((F22+G22)/E22) -> 1.76 | M22: =PRODUCT(H22/E22) -> 0.53 | N22: =PRODUCT((F22+G22+H22)/E22) -> 2.29 | O22: =PRODUCT(I22/120) -> 5.32 | T22: KPL = Kouvolan Pallonlyöjät (1931)
B23: SUOMENSARJA | E23: =PRODUCT(AA18+AM18) -> 28 | F23: =PRODUCT(AB18+AN18) -> 4 | G23: =PRODUCT(AC18+AO18) -> 62 | H23: =PRODUCT(AD18+AP18) -> 28 | I23: =PRODUCT(AE18+AQ18) -> 67 | J23: =PRODUCT(I23/K23) -> 62.6 % | K23: =PRODUCT(AG18+AS18) -> 107 | L23: =PRODUCT((F23+G23)/E23) -> 2.36 | M23: =PRODUCT(H23/E23) -> 1.00 | N23: =PRODUCT((F23+G23+H23)/E23) -> 3.36 | O23: =PRODUCT(I23/12) -> 5.58 | T23: SuPo = Summan Ponnistus (1906)
B24: YHTEENSÄ | E24: =SUM(E21:E23) -> 335 | F24: =SUM(F21:F23) -> 25 | G24: 492 | H24: 147 | I24: 1001 | K24: =SUM(K21:K23) -> 967.97669 | L24: =PRODUCT((F24+G24)/E24) -> 1.54 | M24: =PRODUCT(H24/E24) -> 0.44 | N24: =PRODUCT((F24+G24+H24)/E24) -> 1.98 | O24: =PRODUCT(I24/234) -> 4.28 | T24: HaPe = Hamina Pesis (2003)

Sheet Kärkilyönnit
B1: KÄRKILYÖNNIT RUNKOSARJASSA | V1: VUOSITTAISET SIJOITUKSET TOP - 30
G2: 0 > 1 | J2: 1 > 2 | M2: 2 > 3 | P2: 3 > k | S2: Yhteensä
B3: Vuosi | C3: Sija | D3: Seura | E3: OTT | F3: KL | G3: YHT | H3: % | I3: KL | J3: YHT | K3: % | L3: KL | M3: YHT | N3: % | O3: KL | P3: YHT | Q3: % | R3: KL | S3: YHT | T3: % | V3: Vuosi | W3: Sija | X3: Seura | Y3: 0 > 1 | Z3: 1 > 2 | AA3: 2 > 3 | AB3: 3 > k | AC3: KL
B4: 1986 | C4: 10. | D4: HP | E4: 22 | F4: 6 | G4: 35 | H4: =PRODUCT(F4/G4) -> 17.1 % | I4: 15 | J4: 26 | K4: =PRODUCT(I4/J4) -> 57.7 % | L4: 15 | M4: 31 | N4: =PRODUCT(L4/M4) -> 48.4 % | O4: 12 | P4: 30 | Q4: =PRODUCT(O4/P4) -> 40.0 % | R4: 48 | S4: =PRODUCT(G4+J4+M4+P4) -> 122 | T4: 39.3 % | V4: 1986 | W4: 10. | X4: HP
B5: **** | V5: ****
B6: 1999 | C6: 13. | D6: KPL | E6: 28 | F6: 2 | G6: 2 | H6: =PRODUCT(F6/G6) -> 100.0 % | I6: 7 | J6: 28 | K6: =PRODUCT(I6/J6) -> 25.0 % | L6: 43 | M6: 73 | N6: =PRODUCT(L6/M6) -> 58.9 % | O6: 35 | P6: 105 | Q6: =PRODUCT(O6/P6) -> 33.3 % | R6: 87 | S6: =PRODUCT(G6+J6+M6+P6) -> 208 | T6: 42.3 % | V6: 1999 | W6: 13. | X6: KPL | AA6: 20. | AB6: 13.
B7: 2000 | C7: 13. | D7: HP | E7: 27 | F7: 1 | G7: 4 | H7: 25.0 % | I7: 6 | J7: 14 | K7: 42.9 % | L7: 32 | M7: 67 | N7: 47.8 % | O7: 19 | P7: 88 | Q7: 21.6 % | R7: 58 | S7: 173 | T7: 33.5 % | V7: 2000 | W7: 13. | X7: HP
B8: Yhteensä | E8: =SUM(E4:E7) -> 77 | F8: =SUM(F4:F7) -> 9 | G8: =SUM(G4:G7) -> 41 | H8: =PRODUCT(F8/G8) -> 22.0 % | I8: =SUM(I4:I7) -> 28 | J8: =SUM(J4:J7) -> 68 | K8: =PRODUCT(I8/J8) -> 41.2 % | L8: =SUM(L4:L7) -> 90 | M8: =SUM(M4:M7) -> 171 | N8: =PRODUCT(L8/M8) -> 52.6 % | O8: =SUM(O4:O7) -> 66 | P8: =SUM(P4:P7) -> 223 | Q8: =PRODUCT(O8/P8) -> 29.6 % | R8: =SUM(R4:R7) -> 193 | S8: =SUM(S4:S7) -> 503 | T8: 38.5 %
